Cogmind - Beta 10.2 @@@ ROGUE MODE // 2020.11.02 @ 17:07:49 Player: KravenLupei Result: Self-destructed Performance ------------- Evolutions (1) 500 Regions Visited (2) 400 Robots Destroyed (14) 70 Value Destroyed (429) 429 Prototype IDs (0) 0 Alien Tech Used (0) 0 Bonus (0) 0 TOTAL SCORE: 1399 Bonus ------- None Cogmind --------- Core Integrity 64/400 Matter 168/300 Energy 100/100 System Corruption 6% Temperature Cool (0) Movement Core (300) Ox5 Location -9/Materials Parts ------- > --- POWER (2) -------- (None) > --- PROPULSION (3) --- (None) > --- UTILITY (2) ------ Large Storage Unit > --- WEAPON (2) ------- (None) > --- INVENTORY (10) --- Small Storage Unit Medium Storage Unit Grenade Launcher Peak State ------------ > --- POWER ------------ Ion Engine Light Ion Engine > --- PROPULSION ------- Aluminum Leg Aluminum Leg Aluminum Leg > --- UTILITY ---------- Small Storage Unit Medium Storage Unit > --- WEAPON ----------- Beam Rifle Beam Rifle > --- INVENTORY -------- Light Ion Engine Wheel Compact Wheel Heat Sink Large Storage Unit Light Assault Rifle [Rating: 11] Favorites ----------- Power Ion Engine Engine Ion Engine Propulsion Aluminum Leg Leg Aluminum Leg Wheel Wheel Utility Small Storage Unit Device Heat Sink Storage Small Storage Unit Weapon Light Assault Rifle Energy Gun Small Laser Ballistic Gun Light Assault Rifle Launcher Grenade Launcher Build | -11 -10 -9 ------- Run | Scr Mat Mat Slots Evolved 2 | . . 2 Power 1 | . . 1 Propulsion 1 | . . 1 Utility . | . . . Weapon . | . . . Parts Attached 33 | 12 3 18 Power 4 | 2 . 2 Engine 4 | 2 . 2 Core . | . . . Reactor . | . . . Propulsion 13 | 6 . 7 Treads . | . . . Leg 4 | 1 . 3 Wheel 9 | 5 . 4 Hover . | . . . Flight . | . . . Utility 6 | 1 3 2 Device 1 | . . 1 Storage 5 | 1 3 1 Processor . | . . . Hackware . | . . . Protection . | . . . Artifact . | . . . Weapon 10 | 3 . 7 Energy Gun 7 | 2 . 5 Energy Cannon . | . . . Ballistic Gun 2 | 1 . 1 Ballistic Cannon . | . . . Launcher 1 | . . 1 Special Weapon . | . . . Impact Weapon . | . . . Slashing Weapon . | . . . Piercing Weapon . | . . . Special Melee Weapon . | . . . Unidentified Prototypes . | . . . Parts Lost 14 | . 2 12 Power 3 | . . 3 Propulsion 4 | . 1 3 Utility 1 | . . 1 Weapon 6 | . 1 5 Highest Loss Streak 7 | . 2 7 Average Slot Usage (%) 83 | . 95 77 Engine 12 | . 14 11 Leg 17 | . . 25 Wheel 12 | . 27 5 Storage 19 | . 27 15 Energy Gun 10 | . 11 10 Ballistic Gun 8 | . 14 5 Launcher 2 | . . 3 Naked Turns . | . . . Heaviest Build 26 | 12 19 26 Greatest Support 38 | 26 26 38 Greatest Overweight (x) 5 | 1 1 5 Average Overweight (x) . | . . . Largest Inventory Capacity 14 | 6 14 12 Average Capacity 9 | 5 9 10 Most Carried 7 | 6 7 7 Average Carried 5 | 3 6 5 Final Capacity 10 | 6 10 10 Final Carried 7 | 5 7 3 Class Distribution -------------------- 100% | Mutant Dominant Class ---------------- Mutant | -10/Materials Mutant | -9/Materials Resources | -11 -10 -9 ----------- Run | Scr Mat Mat Matter Collected 414 | 225 17 172 Remotely . | . . . Salvage Created 417 | 28 30 359 Parts 40 | 6 7 27 Haulers Intercepted . | . . . Recyclers Shooed . | . . . Parts Field Recycled . | . . . Retrieved Matter . | . . . Parts Self-Destructed . | . . . Prevented . | . . . Kills | -11 -10 -9 ------- Run | Scr Mat Mat Combat Hostiles Destroyed 12 | . 2 10 Guns 6 | . 2 4 AOE 6 | . . 6 Classes Destroyed 5 | 1 1 3 Tunneler 1 | 1 . . Operator 1 | . . 1 Swarmer 2 | . 2 . Grunt 7 | . . 7 Sentry 3 | . . 3 Best Kill Streak 6 | 1 2 6 Combat Bots Only 5 | . 2 5 Max Kills in Single Turn 3 | 1 1 3 Gunslinging . | . . . Exploded 3 | . . 3 Melee . | . . . Uniques/NPCs Destroyed . | . . . Combat | -11 -10 -9 -------- Run | Scr Mat Mat Damage Taken 1604 | . 256 1348 Core 429 | . 93 336 Absorbed by Shields . | . . . Core Remaining (%) 81 | 100 62 . Volleys Fired 44 | 2 4 38 Largest 2 | 2 1 2 Hottest 112 | 60 20 112 Shots Fired 74 | 4 4 66 Gun 68 | 4 4 60 Cannon . | . . . Launcher 6 | . . 6 Special . | . . . Kinetic 22 | 2 4 16 Thermal 35 | 2 . 33 Explosive 6 | . . 6 Electromagnetic 11 | . . 11 Robot Hit Streak 9 | 1 2 9 Robot Miss Streak 3 | 2 2 3 Penetration Max . | . . . Secondary Targets . | . . . Shots Hit Robots 47 | 1 2 44 Core Hits 29 | 2 2 25 Critical Hits 1 | . 1 . Critical Kills 1 | . 1 . Critical Parts Destroyed . | . . . Melee Attacks . | . . . Impact . | . . . Slashing . | . . . Piercing . | . . . Sneak Attacks . | . . . Combat Hostiles . | . . . Follow-up Attacks . | . . . Damage Inflicted 944 | 15 16 913 Guns 498 | 15 16 467 Cannons . | . . . Explosions 444 | . . 444 Melee . | . . . Ramming 2 | . . 2 Kinetic 88 | 15 16 57 Thermal 388 | . . 388 Explosive 388 | . . 388 Electromagnetic 78 | . . 78 Impact . | . . . Slashing . | . . . Piercing . | . . . Highest Corruption 6 | . . 6 Average Corruption 6 | . . 6 Corruption Purged . | . . . Effects 1 | . . 1 Matter Fused 1 | . . 1 Overload Shots . | . . . Overflow Damage . | . . . Projectiles . | . . . Explosions . | . . . Melee . | . . . Knockbacks . | . . . Impact . | . . . Kinetic . | . . . Secondary . | . . . Self-Inflicted Damage 82 | . . 82 Shots 4 | . . 4 Rammed 1 | . . 1 Targets Rammed 1 | . . 1 Kicked . | . . . Crushed . | . . . Highest Temperature 373 | 20 . 373 Average Temperature 107 | 15 . 109 Received Heat Transfer 474 | . 78 396 Effects 2 | . . 2 Shutdowns 1 | . . 1 Interference 1 | . . 1 Siege Activations . | . . . Robots Corrupted . | . . . Combat Hostiles . | . . . Parts Fried . | . . . Impact Corruptions . | . . . Robots Melted . | . . . Combat Hostiles . | . . . Parts Melted 2 | . . 2 Heat Transferred 901 | . . 901 Parts Sabotaged . | . . . Parts Stolen . | . . . Parts Stripped . | . . . Power Chain Reactions 1 | . . 1 Missiles Intercepted . | . . . Alert | -11 -10 -9 ------- Run | Scr Mat Mat Peak Influence 360 | 5 58 360 Initial 20 | . 3 20 Average 87 | 1 8 157 Maximum Alert Level 1 | . . 1 Low Security (%) 82 | 100 100 67 Level 1 17 | . . 32 Level 2 . | . . . Level 3 . | . . . Level 4 . | . . . Level 5 . | . . . High Security . | . . . Max Security . | . . . Squads Dispatched 4 | . 2 2 Investigation . | . . . Extermination . | . . . Reinforcement 4 | . 2 2 Assault . | . . . Garrison . | . . . Intercept . | . . . Construction Impeded . | . . . Haulers Reinforced . | . . . Stealth | -11 -10 -9 --------- Run | Scr Mat Mat Distress Signals 2 | . 1 1 Communications Jammed . | . . . Distress Signals . | . . . Times Spotted 34 | . 14 20 Peak Tracking Total 10 | . 10 9 Tactical Retreats 2 | . . 2 Traps | -11 -10 -9 ------- Run | Scr Mat Mat Traps Triggered . | . . . Indirectly . | . . . Trap Hack Attempts . | . . . Triggered . | . . . Disarmed . | . . . Reprogrammed . | . . . Reused . | . . . Traps Extracted . | . . . Installed . | . . . Triggered . | . . . Machines | -11 -10 -9 ---------- Run | Scr Mat Mat Machines Disabled . | . . . Max in Single Turn . | . . . Machines Sabotaged . | . . . Garrisons Compromised . | . . . Overloaded Fab Kills . | . . . Fab Network Shutdowns . | . . . Hacking | -11 -10 -9 --------- Run | Scr Mat Mat Machines Accessed 1 | . . 1 Terminals 1 | . . 1 Fabricators . | . . . Repair Stations . | . . . Recycling Units . | . . . Scanalyzers . | . . . Garrison Access . | . . . Total Hacks 1 | . . 1 Successful 1 | . . 1 Failed . | . . . Catastrophic . | . . . Database Lockouts . | . . . Manual . | . . . Terminals 1 | . . 1 Fabricators . | . . . Repair Stations . | . . . Recycling Units . | . . . Scanalyzers . | . . . Garrison Access . | . . . Terminal Hacks 1 | . . 1 Locate Traps 1 | . . 1 Fabricator Hacks . | . . . Repair Station Hacks . | . . . Recycling Unit Hacks . | . . . Scanalyzer . | . . . Garrison Access Hacks . | . . . Unauthorized Hacks . | . . . Terminals . | . . . Fabricators . | . . . Repair Stations . | . . . Recycling Units . | . . . Scanalyzers . | . . . Garrison Access . | . . . Data Cores Recovered . | . . . Used . | . . . Hacking Detections 1 | . . 1 Full Trace Events . | . . . Feedback Events . | . . . Feedback Blocked . | . . . Robot Schematics Acquired . | . . . Robots Built . | . . . Matter . | . . . Time . | . . . Total Robot Build Rating . | . . . Part Schematics Acquired . | . . . Parts Built . | . . . Matter . | . . . Time . | . . . Total Part Build Rating . | . . . Parts Repaired . | . . . Time . | . . . Parts Recycled . | . . . Recycled Matter . | . . . Retrieved Matter . | . . . Retrieved Components . | . . . Parts Scanalyzed . | . . . Part Schematics Acquired . | . . . Parts Damaged . | . . . Bothacking | -11 -10 -9 ------------ Run | Scr Mat Mat Used RIF Installer . | . . . Robots Hacked . | . . . Non-combat . | . . . Combat . | . . . Robot Hacks Applied . | . . . Relay Couplers Released . | . . . Robots Rewired . | . . . Allies Hacked . | . . . Hacks Repelled . | . . . Allies | -11 -10 -9 -------- Run | Scr Mat Mat Total Allies . | . . . Largest Group . | . . . Highest-Rated Group . | . . . Highest-Rated Ally . | . . . Total Orders . | . . . Ally Attacks . | . . . Total Damage . | . . . Kills . | . . . Allies Corrupted . | . . . Allies Melted . | . . . Intel | -11 -10 -9 ------- Run | Scr Mat Mat Robot Analysis Total . | . . . Derelict Logs Recovered . | . . . Drone Launches . | . . . Drone Recoveries . | . . . Exploration | -11 -10 -9 ------------- Run | Scr Mat Mat Turns Passed 674 | 143 166 365 Spaces Moved 469 | 117 166 186 Core 20 | 12 . 8 Treads . | . . . Legs 147 | 3 . 144 Wheels 302 | 102 166 34 Hover . | . . . Flight . | . . . Fastest Speed 50 | 50 90 85 Average Speed 102 | 88 91 122 Slowest Speed 300 | 120 110 300 Overloaded Moves . | . . . Propulsion Burnouts . | . . . Robots Hopped . | . . . Cave-ins Triggered 1 | . . 1 Exploration Rate (%) 17 | 5 35 13 Regions Visited 2 Branch Regions . Pre-discovered Areas . | . . . Known Exits Taken . | . . . Unknown Exits Taken 2 | 1 1 . Scrap Searched . | . . . Spaces Dug . | . . . Terrain Destroyed 56 | . . 56 Melee . | . . . Projectile . | . . . AOE 56 | . . 56 Terrain Rammed . | . . . Walls Destroyed . | . . . Machines Disabled . | . . . Actions | -11 -10 -9 --------- Run | Scr Mat Mat Total 590 | 151 177 262 Wait 7 | 1 . 6 Move 467 | 116 165 186 Hop . | . . . Pick Up 26 | 15 4 7 Fast Attach 1 | 1 . . Attach 20 | 5 1 14 Detach 3 | . . 3 Swap 12 | 6 2 4 Drop 9 | 5 1 3 Fire 44 | 2 4 38 Melee . | . . . Ram . | . . . Kick 1 | . . 1 Crush . | . . . Escape Stasis . | . . . Rewire . | . . . Trap . | . . . Miscellaneous . | . . . Route ------- -11/Scrapyard -10/Materials -9/Materials (discovered 1 exit: [*Min]) History --------- Turn | Location | Event 25 | -11/Scrapyard | Discovered new exit (range 16) 144 | -11/Scrapyard | Entered Materials 295 | -10/Materials | Discovered new exit (range 14) 301 | -10/Materials | Build established: Mutant 310 | -10/Materials | Entered another Materials area 310 | -9/Materials | Evolved 2 slots: Power x1, Propulsion x1 318 | -9/Materials | Discovered new exit (range 8) 503 | -9/Materials | Lost 4 parts (2p1u1w) 651 | -9/Materials | Crushed by falling debris 661 | -9/Materials | Core integrity fell below 50% 675 | -9/Materials | Core integrity fell below 20% 675 | -9/Materials | Self-destructed Last Messages --------------- 00643_ Beam Rifle destroyed. 00643_ Com. Wheel destroyed. 00645_ The unstable cave ceiling collapses. 00645_ Heat Sink crushed. 00647_ R-06 Scavenger collects Aluminum Leg. 00648_ Acquired 6 matter. 00651_ The unstable cave ceiling collapses. 00651_ Crushed by falling debris. [Achievement: Unlikely Earthworm] 00651_ Arm. Wheel destroyed. 00651_ System corrupted by crushing effect (+4). 00651_ Wheel destroyed. 00651_ System corrupted by crushing effect (+2). 00651_ Heat Sink crushed. 00651_ Acquired 7 matter. 00651_ R-06 Scavenger collects Sml. Laser. 00654_ Acquired 9 matter. 00655_ R-06 Scavenger collects Lgt. Nuclear Core. 00665_ System corrupted: Matter fused (-8). 00665_ The unstable cave ceiling collapses. Map ----- +----------------------------------------------------+ | ?# """ ####### #??????????????????? | | ?# "R" """ # # #??????????????????? | | ???" " """ # # #??????????????????? | | ?# """ / < # #??????????????????? | | ?# """ #== # #??????????????????? | | ?# """ #= # #??????????????????? | | ?# ## #??????????????????? | | ?# ## #??????????????????? | | ?#?########## #??????????????????? | | ?????# + #??????????????????? | | ?????# """ # #??????????????????? | | ?????# "T" # #??????????????????? | | ?????# # #??????????????????? | | ?????# ###### #??????????????????? | | ?????# #????# #??????????????????? | | ?????########????# #??????????????????? | | ??????????????#### ####???????????????? | | ??????????????# # #???????????????? | | ?????????????## #???????????????? | | ????????????## = ## #???????????????? | | ????????????# =%=*= #???????????????? | | ????????????# * # #???????????????? | | ??????????### g== #???????????????? | | ?????????## ##???????????????? | | ?????????# l ##????????????????? | | ?????????# @ #?????????????????? | | ?????????# #?????????????????? | | ?????????# #?????????????????? | | ?????????## #########?????????????????? | | | | | | | | | | | | | | | | | | | | | | | | | | | | | | | | | | | | | | | | | | | +----------------------------------------------------+ Best States ------------- Heat Dissipation 28 Energy Generation 15 Energy Capacity 275 Matter Stores 259 Matter Capacity 300 Sight Range 16 Terrain Scan Density 10 Evasion (%) 50 Item Schematics ----------------- None Robot Schematics ------------------ None Fabricated ------------ Nothing Alien Tech Used ----------------- None Achievements -------------- Uninvited Guest Unlikely Earthworm Challenges ------------ None Game ------ Seed ThermalSlugBattery Manual? 0 Play Time 00:24:11 Cumulative 1.4 hours Start 2020.11.02 @ 16:44:25 End 2020.11.02 @ 17:07:49 Sessions 1 Manual Loads 0 Difficulty Rogue Special Mode None Game No. 5 Rogue 5 Adventurer 0 Explorer 0 Win Type - Total 0 Types 0/0/0/0/0/0/0/0/0 Lore% 1 Gallery% 4 Achievement% 0 Wizard Run 0 Options --------- ASCII 0 Keyboard 0 Movement Numpad Keybinds 0 Fullscreen 1 Font 24/Terminus Map View 76x50 Tactical HUD 1 Map Filters NONE Filters NONE Steam 1 RUN: ccfe7ba9-68ed-43ce-872b-a4589f96e7d2